bitfinex-derivatives/quotes_BTCF0:USTF0_20240825
["timestamp","ask_amount","ask_price","bid_price","bid_amount"]
[1724608495053,0.440088,64164.0,64163.0,0.25133582]
[1724608495350,0.079288,64164.0,64163.0,0.25133582]
[1724608495653,0.079288,64164.0,64163.0,0.18912268]
[1724608496348,0.079288,64164.0,64163.0,0.2173958]
[1724608500351,0.079288,64164.0,64163.0,0.6849558]
[1724608500352,0.0014,64164.0,64163.0,0.6849558]
[1724608500552,0.0014,64164.0,64163.0,0.2173958]
[1724608507859,0.077883,64168.0,64164.0,0.077887]
[1724608508051,0.077883,64168.0,64167.0,0.09]
[1724608508253,0.077883,64168.0,64167.0,0.16213004]
[1724608508761,0.02768667,64170.0,64167.0,0.16213004]
[1724608508961,0.3608,64171.0,64169.0,0.14001204]
[1724608509150,0.3608,64171.0,64170.0,0.23001104]
[1724608510656,0.3628,64171.0,64170.0,0.167881]
[1724608510861,0.39019594,64171.0,64170.0,0.167881]
[1724608511063,0.39019594,64171.0,64170.0,0.177881]
[1724608511261,0.39119594,64171.0,64170.0,0.177881]
[1724608511463,0.3638,64171.0,64170.0,0.177881]
[1724608513569,0.003,64171.0,64170.0,0.177881]
[1724608517068,0.003,64171.0,64170.0,0.20543124]
[1724608519165,0.003,64171.0,64170.0,0.11543124]
[1724608519355,0.003,64171.0,64170.0,0.20543124]
[1724608524860,0.080879,64171.0,64170.0,0.1]
[1724608531170,0.080879,64171.0,64170.0,0.21868283]
[1724608532467,0.080879,64171.0,64170.0,0.21868118]
[1724608537877,0.080879,64171.0,64170.0,0.1]
[1724608539287,0.080879,64171.0,64170.0,0.12435185]
[1724608539790,0.080879,64171.0,64170.0,0.1]
[1724608540587,0.1741536,64171.0,64170.0,0.1]
[1724608541095,0.080879,64171.0,64170.0,0.1]
[1724608541588,0.1741536,64171.0,64170.0,0.1]
[1724608542485,0.080879,64171.0,64170.0,0.1]
[1724608543890,0.1741536,64171.0,64170.0,0.1]
[1724608544092,0.080879,64171.0,64170.0,0.1]
[1724608544598,0.1741536,64171.0,64170.0,0.1]
[1724608545992,0.080879,64171.0,64170.0,0.21868146]
[1724608548397,0.170879,64171.0,64170.0,0.12868146]
[1724608548595,0.170879,64171.0,64169.0,0.07786693]
[1724608548596,0.077881,64170.0,64169.0,0.07786693]
[1724608548794,0.214581,64170.0,64169.0,0.19655424]
[1724608548996,0.214581,64170.0,64169.0,0.07786693]
[1724608549302,0.214981,64170.0,64169.0,0.07786693]
[1724608549502,0.077882,64169.0,64168.0,0.07786693]
[1724608549697,0.077882,64169.0,64168.0,0.19655557]
[1724608550402,0.078282,64169.0,64168.0,0.19655557]
[1724608550601,0.078282,64169.0,64168.0,0.07786693]
[1724608551403,0.078282,64169.0,64168.0,0.07886693]
[1724608551606,0.078282,64169.0,64168.0,0.001]
[1724608559005,0.078282,64169.0,64168.0,0.091]
[1724608560400,0.078282,64169.0,64168.0,0.101]
[1724608560597,0.078282,64169.0,64168.0,0.12535277]
[1724608561109,0.078282,64169.0,64168.0,0.24403708]
[1724608562007,0.078282,64169.0,64168.0,0.24403608]
[1724608563212,0.078282,64169.0,64168.0,0.21968331]
[1724608563406,0.0004,64169.0,64168.0,0.21968331]
[1724608563605,0.02795507,64173.0,64169.0,0.077881]
[1724608563818,0.077877,64174.0,64172.0,0.09]
[1724608564108,0.077877,64173.0,64172.0,0.1]
[1724608565213,0.078877,64173.0,64172.0,0.1]
[1724608565710,0.077877,64173.0,64172.0,0.1]
[1724608566032,0.081877,64173.0,64172.0,0.1]
[1724608568401,0.12301453,64173.0,64172.0,0.1]
[1724608568815,0.24767328,64173.0,64172.0,0.1]
[1724608570508,0.12301453,64173.0,64172.0,0.1]
[1724608571010,0.24767328,64173.0,64172.0,0.1]
[1724608571214,0.12301453,64173.0,64172.0,0.1]
[1724608573905,0.12301453,64173.0,64172.0,0.09]
[1724608575513,0.1230156,64173.0,64172.0,0.09]
[1724608576113,0.084877,64173.0,64172.0,0.09]
[1724608579317,0.084877,64173.0,64172.0,0.1]
[1724608586915,0.077878,64172.0,64171.0,0.07780637]
[1724608587128,0.167878,64172.0,64171.0,0.07780637]
[1724608587620,0.168278,64172.0,64171.0,0.19649031]
[1724608588225,0.078278,64172.0,64171.0,0.19649031]
[1724608588518,0.083278,64172.0,64171.0,0.19649031]
[1724608589520,0.083278,64172.0,64171.0,0.11868394]
[1724608590427,0.077881,64170.0,64169.0,0.167881]
[1724608590629,0.077881,64170.0,64169.0,0.28656493]
[1724608591321,0.077881,64170.0,64169.0,0.167881]
[1724608591322,0.17170726,64170.0,64169.0,0.167881]
[1724608591528,0.17270726,64170.0,64169.0,0.167881]
[1724608592829,0.17270726,64170.0,64169.0,0.19223341]
[1724608595427,0.17270726,64170.0,64169.0,0.20223341]
[1724608595824,0.17270726,64170.0,64169.0,0.12435241]
[1724608596125,0.17270726,64170.0,64169.0,0.12435244]
[1724608597627,0.079281,64170.0,64169.0,0.12435244]
[1724608598224,0.079281,64170.0,64169.0,0.24303652]
[1724608598435,0.169281,64170.0,64169.0,0.14303652]
[1724608598725,0.079281,64170.0,64169.0,0.23303652]
[1724608598925,0.079281,64170.0,64169.0,0.23303689]
[1724608599322,0.079281,64170.0,64169.0,0.23303694]
[1724608600234,0.079281,64170.0,64169.0,0.23303695]
[1724608600936,0.079281,64170.0,64169.0,0.20868408]
[1724608601234,0.079281,64170.0,64169.0,0.21868408]
[1724608601426,0.079281,64170.0,64169.0,0.20868408]
[1724608605239,0.079281,64170.0,64169.0,0.22868408]
[1724608606236,0.17277351,64170.0,64169.0,0.11]
[1724608607322,0.17277351,64170.0,64169.0,0.13435261]
[1724608608027,0.079281,64170.0,64169.0,0.13435261]
[1724608608432,0.079281,64170.0,64169.0,0.11]
[1724608608634,0.0014,64170.0,64169.0,0.21223458]
[1724608611736,0.0014,64170.0,64169.0,0.21223385]
[1724608613436,0.077878,64173.0,64169.0,0.42410402]
[1724608613635,0.077878,64173.0,64171.0,0.09]
[1724608613835,0.077878,64173.0,64172.0,0.14303303]
[1724608614037,0.077878,64173.0,64172.0,0.15303303]
[1724608614247,0.077878,64173.0,64172.0,0.15343303]
[1724608615345,0.080878,64173.0,64172.0,0.12908118]
[1724608615734,0.077878,64173.0,64172.0,0.12908118]
[1724608616030,0.081878,64173.0,64172.0,0.12908118]
[1724608616645,0.083878,64173.0,64172.0,0.12908118]
[1724608617240,0.084878,64173.0,64172.0,0.12908118]
[1724608621232,0.12301543,64173.0,64172.0,0.0381026]
[1724608622337,0.12301543,64173.0,64172.0,0.06245445]
[1724608622733,0.12301543,64173.0,64172.0,0.03475185]
[1724608623135,0.27878185,64173.0,64172.0,0.03475185]
[1724608623534,0.12301566,64173.0,64172.0,0.03475185]
[1724608623731,0.12301566,64173.0,64172.0,0.0104]
[1724608623732,0.27878185,64173.0,64172.0,0.0104]
[1724608623931,0.27878185,64173.0,64172.0,0.03475204]
[1724608624745,0.27876905,64173.0,64172.0,0.03475204]
[1724608624942,0.12301566,64173.0,64172.0,0.03475204]
[1724608626059,0.27876905,64173.0,64172.0,0.0004]
[1724608626246,0.12301566,64173.0,64172.0,0.0004]
[1724608627840,0.084878,64173.0,64172.0,0.0004]
[1724608628140,0.12301775,64173.0,64172.0,0.0004]
[1724608628341,0.084878,64173.0,64172.0,0.0004]
[1724608628749,0.445678,64173.0,64172.0,0.0004]
[1724608633147,0.084878,64173.0,64172.0,0.0004]
[1724608635050,0.445678,64173.0,64172.0,0.0004]
[1724608635955,0.445678,64173.0,64172.0,0.0904]
[1724608637440,0.445678,64173.0,64172.0,0.11475288]
[1724608639351,0.445678,64173.0,64172.0,0.0904]
[1724608640747,0.445678,64173.0,64172.0,0.11475296]
[1724608641148,0.445678,64173.0,64172.0,0.0904]
[1724608641347,0.445678,64173.0,64172.0,0.11475296]
[1724608641751,0.445678,64173.0,64172.0,0.0904]
[1724608643143,0.445678,64173.0,64172.0,0.1004]
[1724608643548,0.445678,64173.0,64172.0,0.0904]
[1724608643858,0.445678,64173.0,64172.0,0.11475296]
[1724608644151,0.48381718,64173.0,64172.0,0.0904]
[1724608644547,0.445678,64173.0,64172.0,0.0904]
[1724608645746,0.445678,64173.0,64172.0,0.11475289]
[1724608646557,0.445678,64173.0,64172.0,0.0904]
[1724608646856,0.445678,64173.0,64172.0,0.11475289]
[1724608648255,0.084878,64173.0,64172.0,0.12475289]
[1724608648561,0.445678,64173.0,64172.0,0.12475289]
[1724608650155,0.084878,64173.0,64172.0,0.12475289]
[1724608650356,0.445678,64173.0,64172.0,0.12475289]
[1724608650555,0.084878,64173.0,64172.0,0.12475289]
[1724608650857,0.445678,64173.0,64172.0,0.12475289]
[1724608652651,0.445678,64173.0,64172.0,0.1004]
[1724608654167,0.445678,64173.0,64172.0,0.0904]
[1724608655554,0.084878,64173.0,64172.0,0.0904]
[1724608655762,0.445678,64173.0,64172.0,0.0904]
[1724608656648,0.445678,64173.0,64172.0,0.1004]
[1724608656852,0.084878,64173.0,64172.0,0.0904]
[1724608657053,0.445678,64173.0,64172.0,0.0904]
[1724608657658,0.084878,64173.0,64172.0,0.0904]
[1724608657868,0.445678,64173.0,64172.0,0.0904]
[1724608658359,0.4838172,64173.0,64172.0,0.0904]
[1724608658758,0.1230172,64173.0,64172.0,0.0904]
[1724608659258,0.4838172,64173.0,64172.0,0.1004]
[1724608659858,0.1230172,64173.0,64172.0,0.1004]
[1724608660061,0.4838172,64173.0,64172.0,0.1004]
[1724608660659,0.1230172,64173.0,64172.0,0.1004]
[1724608660859,0.4838172,64173.0,64172.0,0.1004]
[1724608661871,0.445678,64173.0,64172.0,0.12475216]
[1724608662066,0.48381593,64173.0,64172.0,0.1004]
[1724608662268,0.48381593,64173.0,64172.0,0.12475217]
[1724608662465,0.445678,64173.0,64172.0,0.12475217]
[1724608662870,0.55475837,64173.0,64172.0,0.1004]
[1724608663072,0.55475837,64173.0,64172.0,0.12475196]
[1724608663366,0.445678,64173.0,64172.0,0.1004]
[1724608663782,0.445678,64173.0,64172.0,0.1247519]
[1724608663983,0.55475837,64173.0,64172.0,0.1247519]
[1724608664578,0.084878,64173.0,64172.0,0.1247519]
[1724608666077,0.19395837,64173.0,64172.0,0.1247519]
[1724608666382,0.084878,64173.0,64172.0,0.24343335]
[1724608666572,0.084878,64173.0,64172.0,0.21908145]
[1724608666772,0.084878,64173.0,64172.0,0.24343335]
[1724608667079,0.084878,64173.0,64172.0,0.14343335]
[1724608667280,0.084878,64173.0,64172.0,0.23343335]
[1724608668581,0.084878,64173.0,64172.0,0.23343343]
[1724608670381,0.084878,64173.0,64172.0,0.31129608]
[1724608670781,0.084878,64173.0,64172.0,0.33564806]
[1724608670978,0.084878,64173.0,64172.0,0.13910396]
[1724608671184,0.084878,64173.0,64172.0,0.21696661]
[1724608672481,0.084878,64173.0,64172.0,0.13910396]
[1724608672785,0.084878,64173.0,64172.0,0.21696661]
[1724608673186,0.084878,64173.0,64172.0,0.23343449]
[1724608673986,0.084878,64173.0,64172.0,0.20908251]
[1724608674490,0.084878,64173.0,64172.0,0.28694812]
[1724608677289,0.084878,64173.0,64172.0,0.28694862]
[1724608677893,0.084878,64173.0,64172.0,0.16826561]
[1724608678490,0.084878,64173.0,64172.0,0.28694862]
[1724608679085,0.084878,64173.0,64172.0,0.16826561]
[1724608679994,0.084878,64173.0,64172.0,0.28694862]
[1724608680497,0.084878,64173.0,64172.0,0.0904]
[1724608680694,0.12301602,64173.0,64172.0,0.0904]
[1724608680890,0.21301602,64173.0,64172.0,0.0004]
[1724608681294,0.12301602,64173.0,64172.0,0.0004]
[1724608682592,0.12301602,64173.0,64172.0,0.0104]
[1724608682790,0.12301602,64173.0,64172.0,0.03475232]
[1724608683300,0.12301602,64173.0,64172.0,0.0104]
[1724608683495,0.12301602,64173.0,64172.0,0.03475232]
[1724608687306,0.12301626,64173.0,64172.0,0.0104]
[1724608687605,0.12301626,64173.0,64172.0,0.05910474]
[1724608687791,0.12301626,64173.0,64172.0,0.04910474]
[1724608688404,0.22505129,64173.0,64172.0,0.02475237]
[1724608688595,0.084878,64173.0,64172.0,0.02475237]
[1724608693198,0.084878,64173.0,64168.0,0.07788306]
[1724608693199,1.32528,64173.0,64168.0,0.07788306]
[1724608693494,1.32528,64173.0,64164.0,0.06231994]
[1724608693495,0.155774,64165.0,64164.0,0.06231994]
[1724608693699,0.09,64164.0,64161.0,0.06231994]
[1724608693903,0.1359,64164.0,64161.0,0.06231994]
[1724608694305,0.291676,64164.0,64161.0,0.04670597]
[1724608694501,0.292076,64164.0,64160.0,0.04670597]
[1724608694710,0.292076,64164.0,64161.0,0.04670597]
[1724608695011,0.292076,64164.0,64160.0,0.04670597]
[1724608695307,0.292076,64164.0,64163.0,0.01223368]
[1724608695308,0.293076,64164.0,64163.0,0.01223368]
[1724608695497,0.32316806,64164.0,64163.0,0.01223368]
[1724608696704,0.35094651,64164.0,64163.0,0.01223368]
[1724608699703,0.32085445,64164.0,64163.0,0.01223368]
[1724608701307,0.41407987,64164.0,64163.0,0.01223368]
[1724608702507,1.13567987,64164.0,64163.0,0.01223368]
[1724608703417,1.04245445,64164.0,64163.0,0.01223368]
[1724608706118,1.51001445,64164.0,64163.0,0.01223368]
[1724608709018,0.78841445,64164.0,64163.0,0.01223368]
[1724608709309,1.51001445,64164.0,64163.0,0.01223368]
[1724608710505,1.15851628,64164.0,64163.0,0.01223368]
[1724608711405,1.02261628,64164.0,64163.0,0.01223368]
[1724608711609,1.11261628,64164.0,64163.0,0.01223368]
[1724608713011,1.11261273,64164.0,64163.0,0.01223368]
[1724608715213,1.06479565,64164.0,64163.0,0.01223368]
[1724608715416,1.02261285,64164.0,64163.0,0.01223368]
[1724608715617,1.10010337,64164.0,64163.0,0.01223368]
[1724608715820,0.94472485,64164.0,64163.0,0.01223368]
[1724608716017,1.11261285,64164.0,64163.0,0.01223368]
[1724608717415,1.26799137,64164.0,64163.0,0.01223368]
[1724608718118,1.10010337,64164.0,64163.0,0.10223368]
[1724608718506,0.98404497,64164.0,64163.0,0.01223368]
[1724608718718,0.82866645,64164.0,64163.0,0.10223368]
[1724608721614,0.46786645,64164.0,64163.0,0.16223368]
[1724608723006,0.38997845,64164.0,64163.0,0.24012268]
[1724608723207,0.3622,64164.0,64163.0,0.61768268]
[1724608723513,0.3622,64164.0,64163.0,0.70768268]
[1724608727219,0.0014,64164.0,64163.0,0.70768268]
[1724608730522,0.0014,64164.0,64163.0,0.24012268]
[1724608732514,0.0014,64164.0,64163.0,0.70768268]
[1724608732716,0.3608,64169.0,64167.0,0.077884]
[1724608733011,0.3608,64169.0,64168.0,0.13662463]
[1724608733215,0.3608,64169.0,64168.0,0.12]
[1724608733621,0.42902943,64169.0,64168.0,0.1204]
[1724608734827,0.45653296,64169.0,64168.0,0.1204]
[1724608735218,0.09573296,64169.0,64168.0,0.1204]
[1724608735422,0.58968893,64169.0,64168.0,0.1204]
[1724608735625,0.62783136,64169.0,64168.0,0.1204]
[1724608735919,0.45653296,64169.0,64168.0,0.1214]
[1724608736329,0.45653296,64169.0,64168.0,0.199283]
[1724608736623,0.06822943,64169.0,64168.0,0.199283]
[1724608736824,0.13992715,64169.0,64168.0,0.199283]
[1724608737026,0.13992715,64170.0,64169.0,0.077882]
[1724608737322,0.13992715,64170.0,64169.0,0.222182]
[1724608737323,0.03008406,64170.0,64169.0,0.222182]
[1724608737720,0.06822276,64170.0,64169.0,0.222182]
[1724608737915,0.06822276,64170.0,64169.0,0.222582]
[1724608737916,0.03008406,64170.0,64169.0,0.222582]
[1724608738518,0.03108406,64170.0,64169.0,0.222582]
[1724608739730,0.03108385,64170.0,64169.0,0.222582]
[1724608740633,0.001,64170.0,64169.0,0.222582]
[1724608740816,0.001,64170.0,64169.0,0.28473188]
[1724608741431,0.001,64170.0,64169.0,0.28473497]
[1724608743423,0.001,64170.0,64169.0,0.222582]
[1724608744229,0.001,64170.0,64169.0,0.28473311]
[1724608744432,0.001,64170.0,64169.0,0.222582]
[1724608746532,0.001,64170.0,64169.0,0.262582]
[1724608747033,0.001,64170.0,64169.0,0.272582]
[1724608747624,0.001,64170.0,64169.0,0.178282]
[1724608748734,0.03108366,64170.0,64169.0,0.178282]
[1724608749620,0.10896466,64170.0,64169.0,0.0104]
[1724608749822,0.14710286,64170.0,64169.0,0.1004]
[1724608751131,0.30272053,64170.0,64169.0,0.1004]
[1724608751327,0.30275359,64170.0,64169.0,0.1004]
[1724608752525,0.14710286,64170.0,64169.0,0.1004]
[1724608752929,0.14710301,64170.0,64169.0,0.1004]
[1724608755531,0.078881,64170.0,64169.0,0.29696466]
[1724608755925,0.078881,64170.0,64169.0,0.1004]
[1724608759032,0.001,64170.0,64169.0,0.178282]
[1724608759333,0.001,64170.0,64169.0,0.25616289]
[1724608760242,0.001,64170.0,64169.0,0.37484666]
[1724608762132,0.001,64170.0,64169.0,0.29696577]
[1724608762941,0.001,64170.0,64169.0,0.29696558]
[1724608767837,0.001,64170.0,64169.0,0.29696545]
[1724608768438,0.077877,64173.0,64169.0,0.24343468]
[1724608768635,0.077877,64173.0,64172.0,0.09]
[1724608768830,0.077877,64173.0,64172.0,0.28868345]
[1724608769235,0.077877,64173.0,64172.0,0.31343425]
[1724608770238,0.080877,64173.0,64172.0,0.31343425]
[1724608770444,0.080877,64173.0,64172.0,0.28908345]
[1724608770445,0.081877,64173.0,64172.0,0.28908345]
[1724608770638,0.11195876,64173.0,64172.0,0.1947508]
[1724608770835,0.15009455,64173.0,64172.0,0.1947508]
[1724608771040,0.15309455,64173.0,64172.0,0.1947508]
[1724608772836,0.15309455,64173.0,64172.0,0.1704]
[1724608773744,0.1530955,64173.0,64172.0,0.1704]
[1724608778657,0.084877,64173.0,64172.0,0.28907826]
[1724608781252,0.084877,64173.0,64172.0,0.31342951]
[1724608783445,0.084877,64173.0,64172.0,0.28907826]
[1724608783644,0.084877,64173.0,64172.0,0.31342951]
[1724608785744,0.1530958,64173.0,64172.0,0.19475125]
[1724608787851,0.1530958,64173.0,64172.0,0.1704]
[1724608788461,0.2008973,64173.0,64172.0,0.1704]
[1724608788759,0.1530958,64173.0,64172.0,0.1704]
[1724608788960,0.2008973,64173.0,64172.0,0.1704]
[1724608789262,0.1530958,64173.0,64172.0,0.19475125]
[1724608792155,0.1530958,64173.0,64172.0,0.1704]
[1724608792361,0.1530958,64173.0,64172.0,0.19475121]
[1724608792955,0.1530958,64173.0,64172.0,0.27262921]
[1724608793755,0.007,64173.0,64172.0,0.39130727]
[1724608793956,0.00192001,64179.0,64172.0,0.28907806]
[1724608794156,0.123069,64180.0,64178.0,0.09]
[1724608794356,0.123069,64180.0,64178.0,0.1]
[1724608795263,0.123069,64180.0,64179.0,0.0004]
[1724608796756,0.131069,64180.0,64179.0,0.0004]
[1724608797163,0.137069,64180.0,64179.0,0.0004]
[1724608797363,0.134069,64180.0,64179.0,0.06362608]
[1724608797955,0.131069,64180.0,64179.0,0.06462608]
[1724608798664,0.221069,64180.0,64179.0,0.0024]
[1724608800664,0.28928716,64180.0,64179.0,0.0024]
[1724608801067,0.19928716,64180.0,64179.0,0.0024]
[1724608803866,0.3550262,64180.0,64179.0,0.0024]
[1724608804271,0.19928716,64180.0,64179.0,0.0024]
[1724608804570,0.3550262,64180.0,64179.0,0.0024]
[1724608805872,0.19928716,64180.0,64179.0,0.0024]
[1724608806170,0.19928657,64180.0,64179.0,0.0024]
[1724608807265,0.56008657,64180.0,64179.0,0.0024]
[1724608808270,0.19928657,64180.0,64179.0,0.0024]
[1724608808469,0.56008657,64180.0,64179.0,0.0024]
[1724608808670,0.491869,64180.0,64179.0,0.0024]
[1724608811582,0.491869,64180.0,64179.0,0.06462608]
[1724608811781,0.446669,64180.0,64179.0,0.06462608]
[1724608811997,0.446669,64180.0,64179.0,0.07462608]
[1724608812486,0.446669,64180.0,64179.0,0.0124]
[1724608813783,0.446669,64180.0,64179.0,0.09027]
[1724608813784,0.085869,64180.0,64179.0,0.09027]
[1724608814486,0.008,64180.0,64179.0,0.28674522]
[1724608814689,0.008,64180.0,64179.0,0.28674503]
[1724608814989,0.008,64180.0,64179.0,0.20893489]
[1724608815487,0.008,64180.0,64179.0,0.29893489]
[1724608816387,0.003,64180.0,64179.0,0.29793489]
[1724608816592,0.011,64180.0,64179.0,0.29893489]
[1724608816890,0.014,64180.0,64179.0,0.29893489]
[1724608817079,0.014,64180.0,64179.0,0.37666351]
[1724608817280,0.014,64180.0,64179.0,0.25799862]
[1724608818178,0.014,64180.0,64179.0,0.20461818]
[1724608820388,0.014,64180.0,64179.0,0.20461847]
[1724608822285,0.014,64180.0,64179.0,0.18027]
[1724608823582,0.091868,64180.0,64179.0,0.0124]
[1724608823779,0.16008163,64180.0,64179.0,0.0124]
[1724608828789,0.31582255,64180.0,64179.0,0.0124]
[1724608830389,0.31582454,64180.0,64179.0,0.0124]
[1724608830796,0.24760892,64180.0,64179.0,0.0124]
[1724608831090,0.091868,64180.0,64179.0,0.1024]
[1724608831683,0.091868,64180.0,64179.0,0.1267493]
[1724608833101,0.091868,64180.0,64179.0,0.1024]
[1724608833893,0.014,64180.0,64179.0,0.25799862]
[1724608834199,0.014,64180.0,64179.0,0.37666173]
[1724608834891,0.014,64180.0,64179.0,0.29893311]
[1724608835091,0.077864,64184.0,64179.0,0.65973311]
[1724608835395,0.077864,64184.0,64183.0,0.09]
[1724608836092,0.083864,64184.0,64183.0,0.09]
[1724608836796,0.083864,64184.0,64183.0,0.0631712]
[1724608836797,0.090864,64184.0,64183.0,0.0631712]
[1724608837095,0.090864,64184.0,64183.0,0.001]
[1724608838789,0.1209438,64184.0,64183.0,0.001]
[1724608838995,0.090864,64184.0,64183.0,0.001]
[1724608839303,0.1149436,64184.0,64183.0,0.001]
[1724608839500,0.1149436,64184.0,64183.0,0.002]
[1724608840393,0.11494384,64184.0,64183.0,0.02634925]
[1724608841601,0.47574384,64184.0,64183.0,0.02634925]
[1724608843196,0.47574384,64184.0,64183.0,0.0024]
[1724608843500,0.47574384,64184.0,64183.0,0.02674974]
[1724608844105,0.47574384,64184.0,64183.0,0.02674967]
[1724608845504,0.47574445,64184.0,64183.0,0.02674967]
[1724608845705,0.5846808,64184.0,64183.0,0.02674967]
[1724608845906,0.084864,64184.0,64183.0,0.0024]
[1724608846110,0.445664,64184.0,64183.0,0.0024]
[1724608846403,0.445664,64184.0,64183.0,0.04906319]
[1724608846404,0.523528,64184.0,64183.0,0.04906319]
[1724608846602,0.621328,64184.0,64183.0,0.04906319]
[1724608846908,0.621328,64184.0,64183.0,0.0024]
[1724608849711,0.260528,64184.0,64183.0,0.0024]
[1724608849901,0.621328,64184.0,64183.0,0.0024]
[1724608851102,0.621328,64184.0,64177.0,0.00023368]
[1724608851103,0.077869,64180.0,64179.0,0.04666319]
[1724608851302,0.15574,64179.0,64178.0,0.04666319]
[1724608851502,0.15574,64179.0,64177.0,0.00023368]
[1724608851503,0.155742,64178.0,64177.0,0.04689687]
[1724608851713,0.983982,64178.0,64177.0,0.04689687]
[1724608853111,0.983982,64178.0,64177.0,0.00023368]
[1724608853608,0.983982,64178.0,64177.0,0.00123368]
[1724608854515,0.983982,64178.0,64177.0,0.00223368]
[1724608854516,0.517542,64178.0,64177.0,0.00223368]
[1724608855109,0.984982,64178.0,64177.0,0.00223368]
[1724608855615,0.517542,64178.0,64177.0,0.00223368]
[1724608856308,0.984982,64178.0,64177.0,0.00223368]
[1724608856710,1.0126297,64178.0,64177.0,0.00223368]
[1724608857615,0.6518297,64178.0,64177.0,0.00223368]
[1724608857815,1.0126297,64178.0,64177.0,0.00223368]
[1724608858413,0.6518297,64178.0,64177.0,0.00223368]
[1724608858714,1.0126297,64178.0,64177.0,0.00223368]
[1724608859511,0.5451897,64178.0,64177.0,0.00223368]
[1724608860318,0.1843897,64178.0,64177.0,0.00223368]
[1724608860619,0.5451897,64178.0,64177.0,0.00223368]
[1724608861003,0.57527373,64178.0,64177.0,0.00223368]
[1724608862405,0.21447373,64178.0,64177.0,0.00223368]
[1724608862818,0.57527373,64178.0,64177.0,0.00223368]
[1724608863122,0.21447373,64178.0,64177.0,0.00223368]
[1724608863417,0.57527373,64178.0,64177.0,0.00223368]
[1724608863614,0.21447373,64178.0,64177.0,0.00223368]
[1724608864019,0.57527373,64178.0,64177.0,0.00223368]
[1724608864922,0.21447373,64178.0,64177.0,0.00223368]
[1724608865120,0.57527373,64178.0,64177.0,0.00223368]
[1724608865420,0.21447373,64178.0,64177.0,0.00223368]
[1724608865621,0.57527373,64178.0,64177.0,0.00223368]
[1724608865821,0.21447373,64178.0,64177.0,0.00223368]
[1724608866021,0.57527373,64178.0,64177.0,0.00223368]
[1724608867015,0.65314473,64178.0,64177.0,0.00223368]
[1724608867211,0.65314473,64178.0,64162.0,0.0913]
[1724608867212,0.167887,64165.0,64162.0,0.0913]
[1724608868020,0.168287,64165.0,64162.0,0.0913]
[1724608868324,0.168287,64165.0,64164.0,0.053]
[1724608868720,0.168287,64165.0,64164.0,0.059]
[1724608869023,0.168287,64165.0,64164.0,0.013]
[1724608869827,0.168287,64165.0,64164.0,0.05963743]
[1724608872224,0.1959325,64165.0,64164.0,0.013]
[1724608878324,0.2738195,64165.0,64164.0,0.013]
[1724608878719,0.3671664,64165.0,64164.0,0.013]
[1724608882318,0.2738195,64165.0,64164.0,0.013]
[1724608883122,0.6346195,64165.0,64164.0,0.013]
[1724608883930,0.5567325,64165.0,64164.0,0.013]
[1724608885528,0.4667325,64165.0,64164.0,0.013]
[1724608886925,0.5567325,64165.0,64164.0,0.013]
[1724608893425,0.1959325,64165.0,64164.0,0.013]
[1724608893631,0.5567325,64165.0,64164.0,0.013]
[1724608895339,0.1959325,64165.0,64164.0,0.013]
[1724608895539,0.5567325,64165.0,64164.0,0.013]
[1724608896240,0.6500794,64165.0,64164.0,0.013]
[1724608896838,0.2892794,64165.0,64164.0,0.013]
[1724608897335,0.5567325,64165.0,64164.0,0.013]
[1724608899538,0.4667325,64165.0,64164.0,0.013]
[1724608899838,0.4667325,64165.0,64164.0,0.07518156]
[1724608900045,0.4667325,64165.0,64164.0,0.013]
[1724608900244,0.1059325,64165.0,64164.0,0.1051]
[1724608902241,0.1059325,64165.0,64164.0,0.1519]
[1724608903949,0.1059325,64165.0,64164.0,0.1619]
[1724608904140,0.1059325,64165.0,64164.0,0.239788]
[1724608914055,0.19938337,64165.0,64164.0,0.239788]
[1724608914362,0.1059325,64165.0,64164.0,0.239788]
[1724608915953,0.19933584,64165.0,64164.0,0.239788]
[1724608916160,0.1059325,64165.0,64164.0,0.239788]
[1724608920055,0.1360206,64165.0,64164.0,0.239788]
[1724608920255,0.1059325,64165.0,64164.0,0.239788]
[1724608920668,0.1360201,64165.0,64164.0,0.239788]
[1724608920854,0.1059325,64165.0,64164.0,0.239788]
[1724608921550,0.1059325,64165.0,64164.0,0.013]
[1724608921860,0.1838195,64165.0,64164.0,0.013]
[1724608922167,0.1540325,64165.0,64164.0,0.013]
[1724608922759,0.1540325,64165.0,64164.0,0.05967354]
[1724608923366,0.2319195,64165.0,64164.0,0.05967354]
[1724608923661,0.5927195,64165.0,64164.0,0.013]
[1724608925458,0.2319195,64165.0,64164.0,0.013]
[1724608925762,0.9535195,64165.0,64164.0,0.013]
[1724608929161,1.4210795,64165.0,64164.0,0.013]
[1724608929560,0.9535195,64165.0,64164.0,0.013]
[1724608933269,0.2319195,64165.0,64164.0,0.013]
[1724608933457,0.9535195,64165.0,64164.0,0.013]
[1724608933674,0.2319195,64165.0,64164.0,0.013]
[1724608933873,0.9535195,64165.0,64164.0,0.013]
[1724608937563,0.2319195,64165.0,64164.0,0.013]
[1724608937765,0.9535195,64165.0,64164.0,0.013]
[1724608938766,0.2319195,64165.0,64164.0,0.013]
[1724608939269,0.9535195,64165.0,64164.0,0.013]
[1724608940171,0.2319195,64165.0,64164.0,0.013]
[1724608940371,0.9535195,64165.0,64164.0,0.013]
[1724608941869,0.2319195,64165.0,64164.0,0.013]
[1724608942375,0.9535195,64165.0,64164.0,0.013]
[1724608943074,0.2319195,64165.0,64164.0,0.013]
[1724608943276,0.9535195,64165.0,64164.0,0.013]
[1724608944075,0.2319195,64165.0,64164.0,0.013]
[1724608944273,0.8756325,64165.0,64164.0,0.013]
[1724608944478,1.0435195,64165.0,64164.0,0.013]
[1724608945275,0.3219195,64165.0,64164.0,0.013]
[1724608945478,1.0435195,64165.0,64164.0,0.013]
[1724608947470,0.3219195,64165.0,64164.0,0.013]
[1724608947674,1.0435195,64165.0,64164.0,0.013]
[1724608949071,1.13694832,64165.0,64164.0,0.013]